fUSD/lending_fUSD_20240923
["ID","MTS","AMOUNT","RATE_DAILY","PERIOD"]
[338935897,1727086246979,-500.89,0.0001299,2]
[338935898,1727086246990,-500.0,0.0001299,2]
[338935899,1727086246999,-500.0,0.0001299,2]
[338935900,1727086247008,-500.0,0.0001299,2]
[338935901,1727086247019,-500.0,0.0001299,2]
[338935902,1727086247029,-500.0,0.0001299,2]
[338935903,1727086247038,-500.0,0.0001299,2]
[338935904,1727086247047,-500.0,0.0001299,2]
[338935905,1727086247057,-500.0,0.0001299,2]
[338935906,1727086247066,-500.0,0.0001299,2]
[338935907,1727086247077,-1126.2,0.0001299,2]
[338935908,1727086247086,-500.0,0.0001299,2]
[338935909,1727086247095,-500.0,0.0001299,2]
[338935910,1727086247105,-500.0,0.0001299,2]
[338935911,1727086247114,-1520.09,0.0001299,2]
[338935912,1727086247123,-2531.13,0.0001299,2]
[338935913,1727086247132,-500.0,0.0001299,2]
[338935914,1727086247142,-523.75,0.0001299,2]
[338935915,1727086247152,-580.03,0.0001299,2]
[338935916,1727086247161,-500.0,0.0001299,2]
[338935917,1727086247170,-1165.11,0.0001299,2]
[338935918,1727086247179,-500.0,0.0001299,2]
[338935919,1727086247188,-500.0,0.0001299,2]
[338935920,1727086247198,-634.85,0.0001299,2]
[338935921,1727086247207,-500.0,0.0001299,2]
[338935922,1727086247216,-500.0,0.0001299,2]
[338935923,1727086247225,-500.0,0.0001299,2]
[338935924,1727086247233,-500.0,0.0001299,2]
[338935925,1727086247243,-1769.21,0.0001299,2]
[338935926,1727086247253,-500.0,0.0001299,2]
[338935927,1727086247262,-1000.0,0.0001299,2]
[338935928,1727086247271,-500.0,0.0001299,2]
[338935929,1727086247280,-850.81,0.0001299,2]
[338935930,1727086247289,-500.0,0.0001299,2]
[338935931,1727086247298,-512.52,0.0001299,2]
[338935932,1727086247308,-1110.54,0.0001299,2]
[338935933,1727086247317,-762.98,0.0001299,2]
[338935934,1727086247328,-527.07,0.0001299,2]
[338935935,1727086247337,-798.62,0.0001299,2]
[338935936,1727086247346,-500.0,0.0001299,2]
[338935937,1727086247357,-500.0,0.0001299,2]
[338935938,1727086247366,-861.12,0.0001299,2]
[338935939,1727086247375,-837.3,0.0001299,2]
[338935940,1727086247385,-500.0,0.0001299,2]
[338935941,1727086247394,-755.78,0.0001299,2]
[338935942,1727086247404,-500.0,0.0001299,2]
[338935943,1727086247413,-524.09,0.0001299,2]
[338935944,1727086247422,-899.91,0.0001299,2]
[338935945,1727086247431,-500.0,0.0001299,2]
[338935946,1727086247440,-500.0,0.0001299,2]
[338935947,1727086247449,-500.0,0.0001299,2]
[338935948,1727086247458,-1098.33,0.0001299,2]
[338935949,1727086247468,-500.0,0.0001299,2]
[338935950,1727086247477,-500.0,0.0001299,2]
[338935951,1727086247486,-2127.45,0.0001299,2]
[338935952,1727086247495,-500.0,0.0001299,2]
[338935953,1727086247504,-500.0,0.0001299,2]
[338935954,1727086247514,-616.2,0.0001299,2]
[338935955,1727086247523,-677.13,0.0001299,2]
[338935956,1727086247532,-1219.24,0.0001299,2]
[338935957,1727086247541,-500.0,0.0001299,2]
[338935958,1727086247551,-500.0,0.0001299,2]
[338935959,1727086247560,-500.0,0.0001299,2]
[338935960,1727086247569,-500.0,0.0001299,2]
[338935961,1727086247580,-866.04,0.0001299,2]
[338935962,1727086247589,-892.97,0.0001299,2]
[338935963,1727086247599,-500.0,0.0001299,2]
[338935964,1727086247608,-2905.77,0.0001299,2]
[338935965,1727086247617,-1864.48,0.0001299,2]
[338935966,1727086247626,-680.45,0.0001299,2]
[338935967,1727086247636,-500.0,0.0001299,2]
[338935968,1727086247645,-500.0,0.0001299,2]
[338935969,1727086247655,-500.0,0.0001299,2]
[338935970,1727086247664,-500.0,0.0001299,2]
[338935971,1727086247673,-500.0,0.0001299,2]
[338935972,1727086247683,-1264.79,0.0001299,2]
[338935973,1727086247693,-1060.91,0.0001299,2]
[338935974,1727086247703,-500.0,0.0001299,2]
[338935975,1727086247713,-1720.62,0.0001299,2]
[338935976,1727086247722,-500.0,0.0001299,2]
[338935977,1727086247732,-1102.43,0.0001299,2]
[338935978,1727086247742,-1604.63,0.0001299,2]
[338935979,1727086247752,-659.45,0.0001299,2]
[338935980,1727086247761,-611.33,0.0001299,2]
[338935981,1727086247771,-522.56,0.0001299,2]
[338935982,1727086247781,-500.0,0.0001299,2]
[338935983,1727086247790,-402.78470588,0.0001299,2]
[338935984,1727086247801,-500.0,0.0001299,2]
[338935985,1727086247810,-500.0,0.0001299,2]
[338935986,1727086247819,-515.31809196,0.0001299,2]
[338935987,1727086247831,-500.0,0.0001299,2]
[338935988,1727086247840,-500.0,0.0001299,2]
[338935989,1727086247850,-825.45,0.0001299,2]
[338935990,1727086247859,-2170.76,0.0001299,2]
[338935991,1727086247869,-500.0,0.0001299,2]
[338935992,1727086247879,-500.0,0.0001299,2]
[338935993,1727086247889,-504.13,0.0001299,2]
[338935994,1727086247898,-500.0,0.0001299,2]
[338935995,1727086247907,-1280.82,0.0001299,2]
[338935996,1727086247917,-1251.52,0.0001299,2]
[338935997,1727086247926,-3888.36,0.0001299,2]
[338935998,1727086247936,-500.0,0.0001299,2]
[338935999,1727086247950,-500.0,0.0001299,2]
[338936000,1727086247959,-1418.76,0.0001299,2]
[338936001,1727086247969,-749.24,0.0001299,2]
[338936002,1727086247978,-1467.17,0.0001299,2]
[338936003,1727086247989,-707.35,0.0001299,2]
[338936004,1727086247999,-500.0,0.0001299,2]
[338936005,1727086248008,-500.0,0.0001299,2]
[338936006,1727086248020,-905.21,0.0001299,2]
[338936007,1727086248030,-649.42,0.0001299,2]
[338936008,1727086248040,-500.0,0.0001299,2]
[338936009,1727086248049,-500.0,0.0001299,2]
[338936010,1727086248059,-729.58,0.0001299,2]
[338936011,1727086248068,-500.0,0.0001299,2]
[338936012,1727086248079,-500.0,0.0001299,2]
[338936013,1727086248088,-500.0,0.0001299,2]
[338936014,1727086248097,-1043.34,0.0001299,2]
[338936015,1727086248106,-1725.28,0.0001299,2]
[338936016,1727086248116,-500.0,0.0001299,2]
[338936017,1727086248125,-646.88,0.0001299,2]
[338936018,1727086248135,-500.0,0.0001299,2]
[338936019,1727086248144,-500.0,0.0001299,2]
[338936020,1727086248154,-500.0,0.0001299,2]
[338936021,1727086248163,-1573.66,0.0001299,2]
[338936022,1727086248173,-500.0,0.0001299,2]
[338936023,1727086248183,-951.71,0.0001299,2]
[338936024,1727086248193,-500.0,0.0001299,2]
[338936025,1727086248204,-500.0,0.0001299,2]
[338936026,1727086248214,-581.59,0.0001299,2]
[338936027,1727086248224,-661.09,0.0001299,2]
[338936028,1727086248233,-1178.66,0.0001299,2]
[338936029,1727086248243,-500.0,0.0001299,2]
[338936030,1727086248253,-644.58,0.0001299,2]
[338936031,1727086248262,-901.72,0.0001299,2]
[338936032,1727086248272,-968.35,0.0001299,2]
[338936033,1727086248282,-609.13,0.0001299,2]
[338936034,1727086248292,-524.62021551,0.0001299,2]
[338936035,1727086248301,-239.7274887,0.0001299,2]
[338936036,1727086248315,-500.0,0.0001299,2]
[338936037,1727086248326,-500.0,0.0001299,2]
[338936038,1727086248339,-714.45,0.0001299,2]
[338936039,1727086248349,-423.16,0.0001299,2]
[338936040,1727086248359,-500.0,0.0001299,2]
[338936041,1727086248370,-973.04,0.0001299,2]
[338936042,1727086248380,-156.59256769,0.0001299,2]
[338936043,1727086248391,-500.0,0.0001299,2]
[338936044,1727086248402,-153.86578636,0.0001299,2]
[338936045,1727086248412,-500.0,0.0001299,2]
[338936046,1727086248423,-500.0,0.0001299,2]
[338936047,1727086248433,-500.0,0.0001299,2]
[338936048,1727086248444,-500.0,0.0001299,2]
[338936049,1727086248455,-1263.87,0.0001299,2]
[338936050,1727086248465,-500.0,0.0001299,2]
[338936051,1727086248475,-500.0,0.0001299,2]
[338936052,1727086248485,-500.0,0.0001299,2]
[338936053,1727086248496,-656.11,0.0001299,2]
[338936054,1727086248506,-1648.23,0.0001299,2]
[338936055,1727086248516,-1060.66,0.0001299,2]
[338936056,1727086248526,-500.0,0.0001299,2]
[338936057,1727086248537,-500.0,0.0001299,2]
[338936058,1727086248547,-500.0,0.0001299,2]
[338936059,1727086248557,-500.0,0.0001299,2]
[338936060,1727086248567,-500.0,0.0001299,2]
[338936061,1727086248578,-500.0,0.0001299,2]
[338936062,1727086248588,-500.0,0.0001299,2]
[338936063,1727086248598,-500.0,0.0001299,2]
[338936064,1727086248608,-500.0,0.0001299,2]
[338936065,1727086248618,-548.35,0.0001299,2]
[338936066,1727086248628,-500.0,0.0001299,2]
[338936067,1727086248638,-500.0,0.0001299,2]
[338936068,1727086248648,-1904.45,0.0001299,2]
[338936069,1727086248658,-698.79,0.0001299,2]
[338936070,1727086248668,-500.0,0.0001299,2]
[338936071,1727086248679,-1044.48,0.0001299,2]
[338936072,1727086248689,-500.0,0.0001299,2]
[338936073,1727086248699,-771.22,0.0001299,2]
[338936074,1727086248709,-1453.37,0.0001299,2]
[338936075,1727086248719,-500.0,0.0001299,2]
[338936076,1727086248729,-500.0,0.0001299,2]
[338936077,1727086248739,-500.0,0.0001299,2]
[338936078,1727086248749,-500.0,0.0001299,2]
[338936079,1727086248759,-507.32569182,0.0001299,2]
[338936080,1727086248769,-950.8,0.00012991,2]
[338936081,1727086248779,-500.0,0.00012991,2]
[338936082,1727086248789,-835.73,0.00012991,2]
[338936083,1727086248799,-500.0,0.00012991,2]
[338936084,1727086248809,-500.0,0.00012991,2]
[338936085,1727086248820,-503.80846338,0.00012991,2]
[338936086,1727086248831,-1371.21,0.00012991,2]
[338936087,1727086248841,-500.0,0.00012991,2]
[338936088,1727086248851,-500.0,0.00012991,2]
[338936089,1727086248861,-1102.67,0.00012991,2]
[338936090,1727086248871,-500.0,0.00012991,2]
[338936091,1727086248881,-500.0,0.00012991,2]
[338936092,1727086248891,-500.0,0.00012991,2]
[338936093,1727086248900,-445.53532519,0.00012991,2]
[338936094,1727086248910,-500.0,0.00012991,2]
[338936095,1727086248920,-500.0,0.00012991,2]
[338936096,1727086248930,-596.54,0.00012991,2]
[338936097,1727086248945,-500.0,0.00012991,2]
[338936098,1727086248955,-500.0,0.00012991,2]
[338936099,1727086248964,-500.0,0.00012991,2]
[338936100,1727086248974,-660.94,0.00012991,2]
[338936101,1727086248984,-552.82,0.00012991,2]
[338936102,1727086248995,-500.0,0.00012991,2]
[338936103,1727086249005,-500.0,0.00012991,2]
[338936104,1727086249015,-276.54095817,0.00012991,2]
[338936105,1727086249026,-500.0,0.00012991,2]
[338936106,1727086249036,-500.0,0.00012991,2]
[338936107,1727086249046,-565.27,0.00012991,2]
[338936108,1727086249056,-500.0,0.00012991,2]
[338936109,1727086249067,-697.68,0.00012991,2]
[338936110,1727086249079,-500.0,0.00012991,2]
[338936111,1727086249089,-500.0,0.00012991,2]
[338936112,1727086249100,-744.45,0.00012991,2]
[338936113,1727086249111,-500.0,0.00012991,2]
[338936114,1727086249121,-500.0,0.00012991,2]
[338936115,1727086249132,-712.74,0.00012991,2]
[338936116,1727086249142,-500.0,0.00012991,2]
[338936117,1727086249152,-500.0,0.00012991,2]
[338936118,1727086249162,-500.0,0.00012991,2]
[338936119,1727086249172,-500.0,0.00012991,2]
[338936120,1727086249182,-500.0,0.00012991,2]
[338936121,1727086249192,-500.0,0.00012991,2]
[338936122,1727086249202,-500.0,0.00012991,2]
[338936123,1727086249212,-500.0,0.00012991,2]
[338936124,1727086249222,-500.0,0.00012991,2]
[338936125,1727086249232,-500.0,0.00012991,2]
[338936126,1727086249242,-613.59,0.00012991,2]
[338936127,1727086249253,-823.66,0.00012991,2]
[338936128,1727086249263,-500.0,0.00012991,2]
[338936129,1727086249273,-583.11,0.00012991,2]
[338936130,1727086249283,-1483.34,0.00012991,2]
[338936131,1727086249293,-500.0,0.00012991,2]
[338936132,1727086249303,-500.0,0.00012991,2]
[338936133,1727086249313,-500.0,0.00012991,2]
[338936134,1727086249323,-566.99,0.00012991,2]
[338936135,1727086249336,-1015.74,0.00012991,2]
[338936136,1727086249345,-500.0,0.00012991,2]
[338936137,1727086249356,-556.57,0.00012991,2]
[338936138,1727086249366,-500.0,0.00012991,2]
[338936139,1727086249376,-2300.15,0.00012991,2]
[338936140,1727086249386,-1222.64,0.00012991,2]
[338936141,1727086249396,-500.0,0.00012991,2]
[338936142,1727086249407,-500.0,0.00012991,2]
[338936143,1727086249417,-500.0,0.00012991,2]
[338936144,1727086249427,-500.0,0.00012991,2]
[338936145,1727086249436,-500.0,0.00012991,2]
[338936146,1727086249446,-500.0,0.00012991,2]
[338936147,1727086249456,-1006.47,0.00012991,2]
[338936148,1727086249467,-1181.06,0.00012991,2]
[338936149,1727086249477,-500.0,0.00012991,2]
[338936150,1727086249487,-502.55709619,0.00012991,2]
[338936151,1727086249497,-500.0,0.00012991,2]
[338936152,1727086249508,-500.0,0.00012991,2]
[338936153,1727086249518,-500.0,0.00012991,2]
[338936154,1727086249529,-1955.76,0.00012991,2]
[338936155,1727086249539,-893.58,0.00012991,2]
[338936156,1727086249550,-734.67,0.00012991,2]
[338936157,1727086249561,-500.0,0.00012991,2]
[338936158,1727086249572,-500.0,0.00012991,2]
[338936159,1727086249583,-500.0,0.00012991,2]
[338936160,1727086249594,-500.0,0.00012991,2]
[338936161,1727086249604,-500.0,0.00012991,2]
[338936162,1727086249614,-1582.67,0.00012991,2]
[338936163,1727086249624,-500.0,0.00012991,2]
[338936164,1727086249634,-500.0,0.00012991,2]
[338936165,1727086249645,-500.0,0.00012991,2]
[338936166,1727086249655,-698.27,0.00012991,2]
[338936167,1727086249665,-500.0,0.00012991,2]
[338936168,1727086249675,-500.0,0.00012991,2]
[338936169,1727086249686,-500.0,0.00012991,2]
[338936170,1727086249696,-500.0,0.00012991,2]
[338936171,1727086249707,-500.0,0.00012991,2]
[338936172,1727086249716,-886.66,0.00012991,2]
[338936173,1727086249727,-1215.56,0.00012991,2]
[338936174,1727086249737,-500.0,0.00012991,2]
[338936175,1727086249746,-500.0,0.00012991,2]
[338936176,1727086249756,-1051.4,0.00012991,2]
[338936177,1727086249767,-500.0,0.00012991,2]
[338936178,1727086249777,-500.0,0.00012991,2]
[338936179,1727086249788,-1067.34,0.00012991,2]
[338936180,1727086249798,-500.0,0.00012991,2]
[338936181,1727086249808,-500.0,0.00012991,2]
[338936182,1727086249819,-500.0,0.00012991,2]
[338936183,1727086249830,-1241.09,0.00012991,2]
[338936184,1727086249840,-500.0,0.00012991,2]
[338936185,1727086249850,-1382.73,0.00012991,2]
[338936186,1727086249861,-500.0,0.00012991,2]
[338936187,1727086249871,-552.13,0.00012991,2]
[338936188,1727086249882,-500.0,0.00012991,2]
[338936189,1727086249892,-513.66873436,0.00012991,2]
[338936190,1727086249902,-500.0,0.00012991,2]
[338936191,1727086249912,-500.0,0.00012991,2]
[338936192,1727086250134,-590.54,0.00012991,2]
[338936193,1727086250145,-500.0,0.00012991,2]
[338936194,1727086250154,-264.35707466,0.00012991,2]
[338936195,1727086250164,-500.0,0.00012991,2]
[338936196,1727086250174,-850.88,0.00012991,2]
[338936197,1727086250183,-500.0,0.00012991,2]
[338936198,1727086250193,-500.0,0.00012991,2]
[338936199,1727086250203,-1119.02,0.00012991,2]
[338936200,1727086250213,-748.01,0.00012991,2]
[338936201,1727086250223,-500.0,0.00012991,2]
[338936202,1727086250233,-675.73,0.00012991,2]
[338936203,1727086250243,-500.0,0.00012991,2]
[338936204,1727086250254,-1159.44,0.00012991,2]
[338936205,1727086250264,-671.94,0.00012991,2]
[338936206,1727086250274,-678.61,0.00012991,2]
[338936207,1727086250285,-500.0,0.00012991,2]
[338936208,1727086250295,-500.0,0.00012991,2]
[338936209,1727086250305,-1527.42,0.00012991,2]
[338936210,1727086250315,-500.0,0.00012991,2]
[338936211,1727086250325,-1082.91,0.00012991,2]
[338936212,1727086250337,-500.0,0.00012991,2]
[338936213,1727086250348,-1994.77,0.00012991,2]
[338936214,1727086250357,-1013.3,0.00012991,2]
[338936215,1727086250367,-500.0,0.00012991,2]
[338936216,1727086250377,-668.18,0.00012991,2]
[338936217,1727086250387,-500.0,0.00012991,2]
[338936218,1727086250397,-500.0,0.00012991,2]
[338936219,1727086250407,-500.0,0.00012991,2]
[338936220,1727086250418,-500.0,0.00012991,2]
[338936221,1727086250428,-594.99,0.00012991,2]
[338936222,1727086250438,-159.11635174,0.00012991,2]
[338936223,1727086250448,-500.0,0.00012991,2]
[338936224,1727086250458,-500.0,0.00012991,2]
[338936225,1727086250468,-500.0,0.00012991,2]
[338936226,1727086250478,-500.0,0.00012991,2]
[338936227,1727086250488,-500.0,0.00012991,2]
[338936228,1727086250497,-682.03,0.00012991,2]
[338936229,1727086250508,-500.0,0.00012991,2]
[338936230,1727086250517,-311.12960315,0.00012991,2]
[338936231,1727086250527,-503.31,0.00012991,2]
[338936232,1727086250537,-786.35,0.00012991,2]
[338936233,1727086250547,-500.0,0.00012991,2]
[338936234,1727086250557,-500.0,0.00012991,2]
[338936235,1727086250567,-749.51,0.00012991,2]
[338936236,1727086250577,-500.0,0.00012991,2]
[338936237,1727086250591,-818.58,0.00012991,2]
[338936238,1727086250601,-500.0,0.00012991,2]
[338936239,1727086250611,-1637.99,0.00012991,2]
[338936240,1727086250621,-683.06,0.00012991,2]
[338936241,1727086250631,-500.0,0.00012991,2]
[338936242,1727086250641,-829.0,0.00012991,2]
[338936243,1727086250651,-1079.76,0.00012991,2]
[338936244,1727086250661,-500.0,0.00012991,2]
[338936245,1727086250671,-500.0,0.00012991,2]
[338936246,1727086250681,-787.54,0.00012991,2]
[338936247,1727086250691,-500.0,0.00012991,2]
[338936248,1727086250701,-500.0,0.00012991,2]
[338936249,1727086250710,-500.0,0.00012991,2]
[338936250,1727086250721,-781.77,0.00012991,2]
[338936251,1727086250730,-913.49,0.00012991,2]
[338936252,1727086250740,-630.66,0.00012991,2]
[338936253,1727086250750,-739.33,0.00012991,2]
[338936254,1727086250759,-500.0,0.00012991,2]
[338936255,1727086250769,-500.0,0.00012991,2]
[338936256,1727086250779,-500.0,0.00012991,2]
[338936257,1727086250789,-569.12,0.00012991,2]
[338936258,1727086250799,-500.0,0.00012991,2]
[338936259,1727086250809,-1064.6,0.00012991,2]
[338936260,1727086250819,-500.0,0.00012991,2]
[338936261,1727086250829,-942.95,0.00012991,2]
[338936262,1727086250841,-500.0,0.00012991,2]
[338936263,1727086250851,-1099.32,0.00012991,2]
[338936264,1727086250861,-500.0,0.00012991,2]
[338936265,1727086250871,-1070.65,0.00012991,2]
[338936266,1727086250881,-502.40725058,0.00012991,2]
[338936267,1727086250890,-663.65,0.00012991,2]
[338936268,1727086250899,-500.0,0.00012991,2]
[338936269,1727086250909,-500.0,0.00012991,2]
[338936270,1727086250919,-815.48,0.00012991,2]
[338936271,1727086250929,-500.0,0.00012991,2]
[338936272,1727086250941,-512.75,0.00012991,2]
[338936273,1727086250951,-500.0,0.00012991,2]
[338936274,1727086250961,-1286.08,0.00012991,2]
[338936275,1727086250971,-849.26,0.00012991,2]
[338936276,1727086250980,-500.0,0.00012991,2]
[338936277,1727086250990,-500.0,0.00012991,2]
[338936278,1727086251000,-500.0,0.00012991,2]
[338936279,1727086251010,-500.0,0.00012991,2]
[338936280,1727086251021,-500.0,0.00012991,2]
[338936281,1727086251031,-2827.6,0.00012991,2]
[338936282,1727086251040,-500.0,0.00012991,2]
[338936283,1727086251049,-797.79,0.00012991,2]
[338936284,1727086251059,-660.03,0.00012991,2]
[338936285,1727086251068,-500.0,0.00012991,2]
[338936286,1727086251078,-500.0,0.00012991,2]
[338936287,1727086251089,-2939.1,0.00012991,2]
[338936288,1727086251098,-654.34,0.00012991,2]
[338936289,1727086251108,-597.14,0.00012991,2]
[338936290,1727086251118,-500.0,0.00012991,2]
[338936291,1727086251127,-500.0,0.00012991,2]
[338936292,1727086251137,-619.89,0.00012991,2]
[338936293,1727086251146,-1105.02,0.00012991,2]
[338936294,1727086251157,-715.08,0.00012991,2]
[338936295,1727086251166,-922.21,0.00012991,2]
[338936296,1727086251176,-500.0,0.00012991,2]
[338936297,1727086251186,-646.94444727,0.00012991,2]
[338936298,1727086251195,-500.0,0.00012991,2]
[338936299,1727086251205,-860.47,0.00012991,2]
[338936300,1727086251215,-527.24,0.00012991,2]
[338936301,1727086251225,-997.48,0.00012991,2]
[338936302,1727086251234,-500.0,0.00012991,2]
[338936303,1727086251244,-500.0,0.00012991,2]
[338936304,1727086251254,-500.0,0.00012991,2]
[338936305,1727086251264,-798.01,0.00012991,2]
[338936306,1727086251274,-500.0,0.00012991,2]
[338936307,1727086251285,-500.0,0.00012991,2]
[338936308,1727086251295,-500.0,0.00012991,2]
[338936309,1727086251306,-904.87,0.00012991,2]
[338936310,1727086251316,-502.12961976,0.00012991,2]
[338936311,1727086251326,-500.0,0.00012991,2]
[338936312,1727086251339,-500.0,0.00012991,2]
[338936313,1727086251349,-560.55,0.00012991,2]
[338936314,1727086251359,-602.22,0.00012991,2]
[338936315,1727086251368,-500.0,0.00012991,2]
[338936316,1727086251378,-692.55,0.00012991,2]
[338936317,1727086251388,-500.0,0.00012991,2]
[338936318,1727086251398,-500.0,0.00012991,2]
[338936319,1727086251407,-500.0,0.00012991,2]
[338936320,1727086251416,-500.0,0.00012991,2]
[338936321,1727086251426,-500.0,0.00012991,2]
[338936322,1727086251436,-1377.44,0.00012991,2]
[338936323,1727086251446,-552.49,0.00012991,2]
[338936324,1727086251456,-500.0,0.00012991,2]
[338936325,1727086251466,-500.0,0.00012991,2]
[338936326,1727086251477,-500.0,0.00012991,2]
[338936327,1727086251487,-964.75,0.00012991,2]
[338936328,1727086251497,-500.0,0.00012991,2]
[338936329,1727086251506,-500.0,0.00012991,2]
[338936330,1727086251516,-500.0,0.00012991,2]
[338936331,1727086251526,-500.0,0.00012991,2]
[338936332,1727086251536,-500.0,0.00012991,2]
[338936333,1727086251546,-500.0,0.00012991,2]
[338936334,1727086251555,-719.22,0.00012991,2]
[338936335,1727086251565,-500.0,0.00012991,2]
[338936336,1727086251575,-939.06,0.00012991,2]
[338936337,1727086251589,-500.0,0.00012991,2]
[338936338,1727086251598,-500.0,0.00012991,2]
[338936339,1727086251608,-1616.43,0.00012991,2]
[338936340,1727086251617,-4259.77,0.00012991,2]
[338936341,1727086251627,-500.0,0.00012991,2]
[338936342,1727086251637,-500.0,0.00012991,2]
[338936343,1727086251647,-500.0,0.00012991,2]
[338936344,1727086251657,-653.06,0.00012991,2]
[338936345,1727086251667,-1962.37,0.00012991,2]
[338936346,1727086251676,-537.54,0.00012991,2]
[338936347,1727086251686,-500.0,0.00012991,2]
[338936348,1727086251696,-500.0,0.00012991,2]
[338936349,1727086251706,-500.0,0.00012991,2]
[338936350,1727086251715,-500.0,0.00012991,2]
[338936351,1727086251725,-345.46184815,0.00012991,2]
[338936352,1727086251734,-267.36909391,0.00012991,2]
[338936353,1727086251744,-500.0,0.00012991,2]
[338936354,1727086251753,-500.0,0.00012991,2]
[338936355,1727086251763,-500.0,0.00012991,2]
[338936356,1727086251773,-578.28,0.00012991,2]
[338936357,1727086251783,-500.0,0.00012991,2]
[338936358,1727086251793,-500.0,0.00012991,2]
[338936359,1727086251802,-961.86,0.00012991,2]
[338936360,1727086251812,-786.76,0.00012991,2]
[338936361,1727086251821,-500.0,0.00012991,2]
[338936362,1727086251832,-500.0,0.00012991,2]
[338936363,1727086251841,-500.0,0.00012991,2]
[338936364,1727086251850,-500.0,0.00012991,2]
[338936365,1727086251860,-500.0,0.00012991,2]
[338936366,1727086251869,-500.0,0.00012991,2]
[338936367,1727086251879,-500.0,0.00012991,2]
[338936368,1727086251889,-500.0,0.00012991,2]
[338936369,1727086251898,-500.0,0.00012991,2]
[338936370,1727086251908,-828.27,0.00012991,2]
[338936371,1727086251917,-500.0,0.00012991,2]
[338936372,1727086251927,-823.01,0.00012991,2]
[338936373,1727086251937,-696.84,0.00012991,2]
[338936374,1727086251949,-1294.14,0.00012991,2]
[338936375,1727086251959,-500.0,0.00012991,2]
[338936376,1727086251968,-500.89,0.00012991,2]
[338936377,1727086251977,-500.0,0.00012991,2]
[338936378,1727086251988,-500.0,0.00012991,2]
[338936379,1727086251998,-500.0,0.00012991,2]
[338936380,1727086252007,-500.0,0.00012991,2]
[338936381,1727086252020,-500.0,0.00012991,2]
[338936382,1727086252029,-510.5,0.00012991,2]
[338936383,1727086252039,-500.0,0.00012991,2]
[338936384,1727086252049,-500.0,0.00012991,2]
[338936385,1727086252058,-500.0,0.00012991,2]
[338936386,1727086252068,-500.0,0.00012991,2]
[338936387,1727086252077,-1126.2,0.00012991,2]
[338936388,1727086252096,-500.0,0.00012991,2]
[338936389,1727086252106,-503.6,0.00012991,2]
[338936390,1727086252115,-500.0,0.00012991,2]
[338936391,1727086252125,-500.0,0.00012991,2]
[338936392,1727086252134,-500.0,0.00012991,2]
[338936393,1727086252144,-545.69,0.00012991,2]
[338936394,1727086252154,-502.1,0.00012991,2]
[338936395,1727086252163,-1520.09,0.00012991,2]
[338936396,1727086252173,-2531.13,0.00012991,2]